fUSD/lending_fUSD_20240520
["ID","MTS","AMOUNT","RATE_DAILY","PERIOD"]
[327533561,1716183040031,-168.43,0.00016126,2]
[327533562,1716183040046,-831.57,0.00016377,2]
[327533563,1716183040060,-300.0,0.00016438,2]
[327533564,1716183040074,-1392.68,0.00016438,2]
[327533565,1716183040088,-173.93,0.00016443,2]
[327533566,1716183040103,-476.9,0.00016666,2]
[327533567,1716183040116,-669.14014886,0.00016671,2]
[327533568,1716183040130,-167.42,0.00016702,2]
[327533569,1716183040146,-180.0,0.00016712,2]
[327533570,1716183040161,-164.2,0.00016795,2]
[327533571,1716183040176,-162.67573837,0.000169,2]
[327533572,1716183040191,-3237.2,0.00017313,2]
[327533573,1716183040205,-150.0,0.00017469,3]
[327533574,1716183040219,-150.0,0.00017469,2]
[327533575,1716183040234,-167.42,0.00017573,2]
[327533576,1716183040249,-168.43,0.00017593,2]
[327533577,1716183040263,-150.0,0.000178,2]
[327533578,1716183040281,-289.0,0.000178,2]
[327533579,1716183040295,-544.0,0.000178,2]
[327533580,1716183040309,-1642.0,0.000178,2]
[327533581,1716183040324,-667.60410312,0.00017809,2]
[327533582,1716183040338,-831.57,0.00017866,2]
[327533583,1716183040353,-7275.13919532,0.00018,2]
[327533584,1716183040366,-1555.3728396,0.00018,2]
[327533585,1716183040381,-1108.9569811,0.00018,2]
[327533586,1716183040395,-310.49437693,0.00018,2]
[327533587,1716183040410,-1658.92567629,0.000181,2]
[327533588,1716183040425,-364.18618546,0.00018236,2]
[327533589,1716183040439,-2547.86451751,0.00018247,2]
[327533590,1716183040454,-848.06,0.00018341,2]
[327533591,1716183040469,-166.16,0.00018444,2]
[327533592,1716183040484,-167.42,0.00018444,2]
[327533593,1716183040498,-173.93,0.00018499,2]
[327533594,1716183040513,-669.14014886,0.00018607,2]
[327533595,1716183040529,-476.9,0.0001893,2]
[327533596,1716183040543,-1034.23003402,0.00019,2]
[327533597,1716183040558,-155.0,0.00019,2]
[327533598,1716183040572,-300.23,0.00019177,2]
[327533599,1716183040586,-178.7100859,0.00019178,2]
[327533600,1716183040601,-500.0,0.00019178,2]
[327533601,1716183040616,-208.1547852,0.00019178,2]
[327533602,1716183040631,-500.0,0.00019178,2]
[327533603,1716183040646,-645.47009746,0.00019178,2]
[327533604,1716183040661,-500.0,0.00019178,2]
[327533605,1716183040675,-500.0,0.00019178,2]
[327533606,1716183040689,-500.0,0.00019178,2]
[327533607,1716183040704,-500.0,0.00019178,2]
[327533608,1716183040718,-500.0,0.00019178,2]
[327533609,1716183040732,-4984.88,0.00019178,2]
[327533610,1716183040746,-7751.48768064,0.000192,2]
[327533611,1716183040761,-1655.13,0.000192,2]
[327533612,1716183040777,-1748.85,0.000192,2]
[327533613,1716183040793,-2099.74,0.000192,2]
[327533614,1716183040809,-3880.44171252,0.000192,2]
[327533615,1716183040824,-2298.91,0.00019339,2]
[327533616,1716183040839,-2471.59,0.00019339,2]
[327533617,1716183040852,-1446.25,0.00019339,2]
[327533618,1716183040866,-192.97869952,0.0001945,2]
[327533619,1716183040883,-472.25625666,0.000195,2]
[327533620,1716183040897,-5000.0,0.000195,3]
[327533621,1716183040912,-17640.98289196,0.000196,2]
[327533622,1716183040928,-152.85901212,0.00019699,2]
[327533623,1716183040940,-690.0,0.000197,3]
[327533624,1716183040950,-155.57702021,0.00019724,2]
[327533625,1716183040961,-3667.3,0.00019851,2]
[327533626,1716183040972,-150.0,0.00019972,2]
[327533627,1716183040983,-2000.0,0.0001999,2]
[327533628,1716183040993,-200.0,0.0001999,2]
[327533629,1716183041004,-627.77142105,0.0002,2]
[327533630,1716183041015,-155.0,0.0002,2]
[327533631,1716183041026,-1262.82225324,0.0002,2]
[327533632,1716183041036,-5184.68610729,0.0002,2]
[327533633,1716183041046,-1773.05966905,0.0002,2]
[327533634,1716183041055,-6238.00785367,0.0002,2]
[327533635,1716183041065,-155.0,0.0002,2]
[327533636,1716183041430,-155.0,0.0002,2]
[327533637,1716183041455,-155.08884548,0.0002,2]
[327533638,1716183041465,-862.07894367,0.0002,2]
[327533639,1716183041474,-343.0,0.0002,2]
[327533640,1716183041484,-189.0,0.0002,2]
[327533641,1716183041494,-2228.86035126,0.0002,2]
[327533642,1716183041504,-155.0,0.0002,2]
[327533643,1716183041514,-5587.5207,0.0002,2]
[327533644,1716183041526,-546.89106013,0.0002,2]
[327533645,1716183041536,-1000.0,0.0002,2]
[327533646,1716183041546,-7600.0,0.0002009,2]
[327533647,1716183041556,-7561.0,0.000201,3]
[327533648,1716183041566,-2000.0,0.0002019,2]
[327533649,1716183041576,-200.0,0.0002019,2]
[327533650,1716183041586,-667.60410312,0.00020264,2]
[327533651,1716183041597,-2000.0,0.00020392,2]
[327533652,1716183041606,-200.0,0.00020392,2]
[327533653,1716183041616,-428.16,0.00020447,2]
[327533654,1716183041626,-150.0,0.000205,2]
[327533655,1716183041636,-669.14014886,0.00020543,2]
[327533656,1716183041647,-170.72,0.00020548,2]
[327533657,1716183041657,-200.0,0.00020596,2]
[327533658,1716183041666,-150.0,0.000208,2]
[327533659,1716183041676,-235.783,0.000208,2]
[327533660,1716183041686,-544.0,0.000208,2]
[327533661,1716183041695,-200.0,0.00020802,2]
[327533662,1716183041705,-717.73732659,0.00021,2]
[327533663,1716183041715,-10000.0,0.00021,2]
[327533664,1716183041724,-150.0,0.00021,2]
[327533665,1716183041734,-200.18659782,0.00021021,2]
[327533666,1716183041744,-170.50160017,0.00021035,2]
[327533667,1716183041753,-476.9,0.00021194,2]
[327533668,1716183041763,-2307.98231396,0.00021194,2]
[327533669,1716183041775,-282.85419889,0.00021245,2]
[327533670,1716183041784,-157.38762473,0.00021258,2]
[327533671,1716183041793,-311.57056729,0.00021288,2]
[327533672,1716183041807,-153.30748744,0.00021292,2]
[327533673,1716183041817,-157.601126,0.00021319,2]
[327533674,1716183041826,-240.27032745,0.0002132,2]
[327533675,1716183041836,-200.18659782,0.00021346,2]
[327533676,1716183041847,-160.03602867,0.00021348,2]
[327533678,1716183041857,-479.55,0.0002137,2]
[327533679,1716183041867,-756.4,0.0002137,2]
[327533681,1716183041876,-162.0,0.00021433,2]
[327533682,1716183041889,-157.05211,0.00021448,2]
[327533683,1716183041899,-364.18618546,0.00021451,2]
[327533684,1716183041909,-938.90338182,0.00021461,2]
[327533685,1716183041918,-157.601126,0.00021464,2]
[327533686,1716183041927,-166.66666667,0.00021489,2]
[327533687,1716183041937,-150.0,0.000215,3]
[327533688,1716183041947,-2307.98231396,0.00021558,2]
[327533689,1716183041956,-153.93988,0.00021581,2]
[327533690,1716183041966,-153.30748744,0.00021595,2]
[327533691,1716183041975,-153.95,0.00021661,2]
[327533692,1716183041985,-240.27032745,0.00021676,2]
[327533693,1716183041994,-177.97005452,0.00021692,2]
[327533694,1716183042003,-157.601126,0.00021757,2]
[327533695,1716183042012,-166.66666666,0.00021814,2]
[327533696,1716183042023,-200.18659782,0.00021824,2]
[327533697,1716183042032,-170.50160017,0.00021825,2]
[327533698,1716183042041,-152.18902764,0.00021854,2]
[327533699,1716183042051,-200.18659782,0.00021878,2]
[327533700,1716183042060,-6769.49926427,0.000219,2]
[327533701,1716183042070,-1000.0,0.000219,2]
[327533702,1716183042080,-2000.0,0.00021918,2]
[327533703,1716183042090,-456.83,0.00021918,2]
[327533704,1716183042099,-1899.08,0.00021918,2]
[327533705,1716183042108,-163.73,0.00021918,2]
[327533706,1716183042118,-506.12381843,0.0002192,2]
[327533707,1716183042127,-157.38762473,0.00021928,2]
[327533708,1716183042137,-158.84348736,0.00021931,2]
[327533709,1716183042146,-576.45261224,0.00021974,2]
[327533710,1716183042156,-5522.30417117,0.00022,2]
[327533711,1716183042165,-1748.85,0.00022,2]
[327533712,1716183042174,-2099.74,0.00022,2]
[327533713,1716183042184,-150.0,0.00022,3]
[327533714,1716183042194,-282.85419889,0.00022052,2]
[327533715,1716183042203,-200.18659782,0.00022123,2]
[327533716,1716183042213,-2307.98231396,0.0002214,2]
[327533717,1716183042223,-166.29644052,0.0002215,2]
[327533718,1716183042232,-938.90338182,0.00022164,2]
[327533719,1716183042241,-157.38762473,0.0002218,2]
[327533720,1716183042251,-154.61721695,0.00022189,2]
[327533721,1716183042260,-166.66666667,0.00022196,2]
[327533722,1716183042269,-2307.98231396,0.00022243,2]
[327533723,1716183042280,-153.02819881,0.00022276,2]
[327533724,1716183042290,-159.00792521,0.00022293,2]
[327533725,1716183042299,-160.03602867,0.00022392,2]
[327533726,1716183042308,-1655.13,0.000224,2]
[327533727,1716183042318,-1209.73544172,0.0002242,2]
[327533728,1716183042327,-938.90338182,0.00022447,2]
[327533729,1716183042337,-157.05211,0.00022448,2]
[327533730,1716183042346,-150.0,0.00022474,3]
[327533731,1716183042355,-669.14014886,0.00022479,2]
[327533732,1716183042364,-290.70664753,0.00022497,2]
[327533734,1716183042756,-830.64391533,0.00013722,2]
[327533735,1716183042768,-3000.0,0.00013722,2]
[327533736,1716183042780,-5010.20853572,0.00013722,2]
[327533737,1716183042791,-1086.54870716,0.00013722,2]
[327533738,1716183042909,-72.59884179,0.00013722,2]
[327533739,1716183042919,-1321.376,0.000208,2]
[327533740,1716183042929,-1126.08955687,0.00022497,2]
[327533741,1716183042942,-275.950685,0.00022497,2]
[327533742,1716183042955,-492.61339342,0.00022497,2]
[327533743,1716183042967,-122.62203114,0.00022497,2]
[327533745,1716183042977,-2500.0,0.000225,2]
[327533746,1716183042986,-150.0,0.000225,3]
[327533747,1716183042996,-1209.73544172,0.00022539,2]
[327533749,1716183043005,-1209.73544172,0.00022567,2]
[327533752,1716183043015,-152.18902764,0.00022598,2]
[327533755,1716183043025,-311.57056729,0.00022614,2]
[327533757,1716183043034,-166.29644052,0.00022616,2]
[327533759,1716183043043,-163.97443191,0.00022619,2]
[327533761,1716183043055,-2307.98231396,0.00022623,2]
[327533763,1716183043064,-200.18659782,0.00022632,2]
[327533765,1716183043073,-166.66666666,0.00022658,2]
[327533769,1716183043083,-240.27032745,0.00022663,2]
[327533773,1716183043092,-938.90338182,0.00022677,2]
[327533776,1716183043101,-150.0,0.00022684,2]
[327533778,1716183043110,-667.60410312,0.00022718,2]
[327533781,1716183043120,-158.14,0.00022759,2]
[327533784,1716183043129,-152.18902764,0.00022785,2]
[327533786,1716183043139,-200.18659782,0.00022791,2]
[327533788,1716183043148,-1209.73544172,0.00022798,2]
[327533789,1716183043157,-1500.0,0.00022834,2]
[327533791,1716183043167,-150.0,0.00022854,2]
[327533792,1716183043176,-150.0,0.00022855,2]
[327533793,1716183043186,-1500.0,0.00022863,2]
[327533794,1716183043196,-576.45261224,0.00022874,2]
[327533795,1716183043206,-150.0,0.00022907,2]
[327533796,1716183043216,-150.0,0.00022924,2]
[327533797,1716183043226,-150.0,0.00022969,2]
[327533798,1716183043236,-1500.0,0.00022969,2]
[327533799,1716183043245,-311.57056729,0.00022988,2]
[327533800,1716183043257,-166.29644052,0.00022988,2]
[327533801,1716183043267,-155.0,0.00023,2]
[327533802,1716183043279,-171.0,0.00023,2]
[327533803,1716183043288,-301.214518,0.00023,2]
[327533804,1716183043297,-1500.0,0.00023,2]
[327533805,1716183043307,-150.0,0.00023,3]
[327533806,1716183043316,-153.93988,0.00023015,2]
[327533807,1716183043325,-938.90338182,0.00023022,2]
[327533808,1716183043334,-150.0,0.00023104,2]
[327533809,1716183043344,-938.90338182,0.00023108,2]
[327533810,1716183043353,-955.79803048,0.00023113,2]
[327533811,1716183043363,-155.0,0.00023113,2]
[327533812,1716183043372,-1209.73544172,0.00023125,2]
[327533813,1716183043381,-576.45261224,0.00023157,2]
[327533814,1716183043390,-157.601126,0.00023236,2]
[327533815,1716183043400,-166.66666666,0.00023244,2]
[327533816,1716183043410,-150.0,0.00023263,2]
[327533817,1716183043421,-157.601126,0.00023289,2]
[327533818,1716183043431,-150.0,0.00023358,2]
[327533819,1716183043441,-1500.0,0.00023366,2]
[327533820,1716183043452,-1209.73544172,0.00023374,2]
[327533821,1716183043462,-2004.25641899,0.000234,2]
[327533822,1716183043472,-300.0,0.00023403,2]
[327533823,1716183043482,-282.85419889,0.00023417,2]
[327533824,1716183043491,-1500.0,0.00023422,2]
[327533825,1716183043502,-150.0,0.00023442,2]
[327533826,1716183043511,-1500.0,0.00023446,2]
[327533827,1716183043522,-240.27032745,0.00023447,2]
[327533828,1716183043532,-157.05211,0.00023448,4]
[327533829,1716183043541,-476.9,0.00023458,2]
[327533830,1716183043550,-2307.98231396,0.00023462,2]
[327533831,1716183043559,-282.85419889,0.00023471,2]
[327533832,1716183043569,-1500.0,0.000235,2]
[327533833,1716183043578,-150.0,0.000235,3]
[327533834,1716183043587,-279.1586375,0.0002351,2]
[327533835,1716183043597,-300.0,0.00023516,2]
[327533836,1716183043606,-14.85642549,0.00023543,2]
[327533837,1716183043654,-1262.0,0.000148,2]
[327533838,1716183043663,-135.14357451,0.00023543,2]
[327533839,1716183043673,-150.0,0.00023554,2]
[327533840,1716183043683,-258.10072889,0.00023565,2]
[327533841,1716183043694,-680.80265293,0.00023565,2]
[327533842,1716183043703,-925.57604484,0.0002357,2]
[327533843,1716183043715,-574.42395516,0.0002357,2]
[327533844,1716183043724,-1500.0,0.00023593,2]
[327533845,1716183043733,-300.0,0.00023651,2]
[327533846,1716183043743,-150.0,0.00023668,2]
[327533847,1716183043752,-815.45548393,0.00023678,2]
[327533930,1716183044986,-547.46957672,9.67e-05,2]
[327533931,1716183045051,-4330.59626476,9.67e-05,2]
[327533932,1716183045063,-976.920342,9.67e-05,2]
[327533933,1716183045074,-383.48999995,9.67e-05,2]
[327533934,1716183045555,-863.04239845,9.67e-05,2]
[327533935,1716183045568,-1487.23232148,9.67e-05,2]
[327533936,1716183046293,-90.15084782,9.67e-05,2]
[327533937,1716183046304,-6019.97572812,0.00013722,2]
[327533938,1716183046316,-1225.0,0.000148,2]
[327533939,1716183046326,-434.923,0.000148,2]
[327533940,1716183046335,-1262.0,0.000178,2]
[327533941,1716183046345,-1225.0,0.000178,2]
[327533942,1716183046356,-1262.0,0.000208,2]
[327533943,1716183046367,-1225.0,0.000208,2]
[327533944,1716183046376,-684.54451607,0.00023678,2]
[327533945,1716183046386,-150.0,0.00023679,2]
[327533946,1716183046395,-1500.0,0.00023683,2]
[327533947,1716183046404,-154.81580749,0.00023708,2]
[327533948,1716183046414,-153.02819881,0.00023711,2]
[327533950,1716183046424,-311.57056729,0.00023728,2]
[327533952,1716183046434,-169.00998555,0.00023739,2]
[327533954,1716183046443,-152.85901212,0.00023739,2]
[327533956,1716183046453,-150.0,0.00023746,2]
[327533958,1716183046462,-150.0,0.00023758,2]
[327533960,1716183046472,-154.95469862,0.00023784,2]
[327533962,1716183046482,-300.0,0.00023787,2]
[327533964,1716183046492,-150.0,0.000238,2]
[327533966,1716183046501,-544.0,0.000238,2]
[327533968,1716183046510,-926.032,0.000238,2]
[327533970,1716183046520,-1225.0,0.000238,2]
[327533972,1716183046530,-157.601126,0.000238,2]
[327533974,1716183046540,-1500.0,0.00023807,2]
[327533976,1716183046550,-1144.39941399,0.00023842,2]
[327533978,1716183046559,-2604.67361667,0.00023842,2]
[327533980,1716183046569,-1500.0,0.00023851,2]
[327533982,1716183046579,-282.85419889,0.00023852,2]
[327533984,1716183046589,-1500.0,0.00023852,2]
[327533986,1716183046598,-1209.73544172,0.00023856,2]
[327533988,1716183046608,-150.0,0.00023863,2]
[327533990,1716183046618,-150.0,0.00023864,2]
[327533992,1716183046627,-1500.0,0.00023868,2]
[327533994,1716183046636,-150.0,0.0002388,2]
[327533996,1716183046646,-1500.0,0.00023882,2]
[327533998,1716183046655,-150.0,0.00023887,2]
[327534000,1716183046664,-1500.0,0.00023899,2]
[327534002,1716183046673,-158.22,0.00023899,2]
[327534004,1716183046683,-150.0,0.00023899,2]
[327534006,1716183046692,-150.0,0.00023899,2]
[327534008,1716183046702,-1500.0,0.00023903,2]
[327534010,1716183046711,-311.57056729,0.00023904,2]
[327534012,1716183046720,-1500.0,0.00023905,2]
[327534014,1716183046730,-166.66666666,0.00023922,2]
[327534016,1716183046739,-1500.0,0.0002393,2]
[327534018,1716183046748,-150.0,0.00023935,2]
[327534020,1716183046758,-1500.0,0.00023944,2]
[327534022,1716183046767,-150.0,0.00023952,2]
[327534024,1716183046778,-150.0,0.00023953,2]
[327534026,1716183046787,-1500.0,0.00023981,2]
[327534028,1716183046800,-432.92304014,0.00024,2]
[327534030,1716183046810,-1748.85,0.00024,2]
[327534032,1716183046820,-2099.74,0.00024,2]
[327534033,1716183046829,-155.0,0.00024,2]
[327534034,1716183046840,-1000.0,0.00024,4]
[327534035,1716183046849,-1009.0,0.00024,4]
[327534036,1716183046859,-500.0,0.00024,2]
[327534037,1716183046869,-500.0,0.00024,2]
[327534038,1716183046880,-500.0,0.00024,2]
[327534039,1716183046890,-500.0,0.00024,2]
[327534040,1716183046899,-500.0,0.00024,2]
[327534041,1716183046909,-500.0,0.00024,2]
[327534042,1716183046919,-500.0,0.00024,2]
[327534043,1716183046928,-500.0,0.00024,2]
[327534044,1716183046938,-500.0,0.00024,2]
[327534045,1716183046947,-500.0,0.00024,2]
[327534046,1716183046957,-500.0,0.00024,2]
[327534047,1716183046966,-500.0,0.00024,2]
[327534048,1716183046975,-500.0,0.00024,2]
[327534049,1716183046984,-500.0,0.00024,2]
[327534050,1716183046994,-500.0,0.00024,2]
[327534051,1716183047003,-500.0,0.00024,2]
[327534052,1716183047013,-374.49,0.00024,2]
[327534053,1716183047023,-500.0,0.00024,2]
[327534054,1716183047035,-500.0,0.00024,2]
[327534055,1716183047044,-500.0,0.00024,2]
[327534056,1716183047053,-500.0,0.00024,2]
[327534057,1716183047062,-500.0,0.00024,2]
[327534058,1716183047070,-500.0,0.00024,2]
[327534059,1716183047147,-500.0,0.00024,2]
[327534060,1716183047157,-500.0,0.00024,2]
[327534061,1716183047167,-500.0,0.00024,2]
[327534062,1716183047176,-500.0,0.00024,2]
[327534063,1716183047185,-500.0,0.00024,2]
[327534064,1716183047194,-500.0,0.00024,2]
[327534065,1716183047204,-500.0,0.00024,2]
[327534066,1716183047213,-500.0,0.00024,2]
[327534067,1716183047223,-500.0,0.00024,2]
[327534068,1716183047232,-500.0,0.00024,2]
[327534069,1716183047241,-500.0,0.00024,2]
[327534070,1716183047251,-500.0,0.00024,2]
[327534071,1716183047260,-500.0,0.00024,2]
[327534072,1716183047270,-500.0,0.00024,2]
[327534073,1716183047281,-500.0,0.00024,2]
[327534074,1716183047291,-500.0,0.00024,2]
[327534075,1716183047300,-500.0,0.00024,2]
[327534076,1716183047309,-500.0,0.00024,2]
[327534077,1716183047319,-500.0,0.00024,2]
[327534078,1716183047328,-500.0,0.00024,2]
[327534079,1716183047338,-500.0,0.00024,2]
[327534080,1716183047347,-500.0,0.00024,2]
[327534081,1716183047356,-627.43,0.00024,2]
[327534082,1716183047366,-478.57,0.00024,2]
[327534083,1716183047375,-1500.0,0.00024,2]
[327534084,1716183047384,-150.0,0.00024,4]
[327534085,1716183047394,-150.0,0.00024001,2]
[327534086,1716183047403,-1500.0,0.00024006,2]
[327534087,1716183047413,-1500.0,0.00024046,2]
[327534088,1716183047422,-150.0,0.00024047,2]
[327534089,1716183047432,-150.08404325,0.00024049,2]
[327534090,1716183047441,-1500.0,0.0002405,2]
[327534091,1716183047450,-300.0,0.00024077,2]
[327534092,1716183047460,-282.85419889,0.00024079,2]
[327534093,1716183047471,-155.0,0.00024086,2]
[327534094,1716183047480,-18684.53572182,0.0002409,2]
[327534095,1716183047490,-150.0,0.0002409,2]
[327534096,1716183047500,-300.0,0.00024093,2]
[327534097,1716183047509,-300.0,0.00024096,2]
[327534098,1716183047519,-150.0,0.00024099,2]
[327534099,1716183047530,-25035.37042011,0.00024107,2]
[327534100,1716183047539,-1500.0,0.00024107,2]
[327534101,1716183047548,-1500.0,0.00024118,2]
[327534102,1716183047557,-150.0,0.0002412,2]
[327534103,1716183047567,-150.0,0.00024141,2]
[327534104,1716183047576,-1500.0,0.00024149,2]
[327534105,1716183047586,-152.18902764,0.00024157,2]
[327534106,1716183047595,-1500.0,0.00024158,2]
[327534107,1716183047604,-1500.0,0.0002416,2]
[327534108,1716183047614,-282.85419889,0.00024161,2]
[327534109,1716183047623,-309.51597614,0.00024174,2]
[327534110,1716183047632,-150.0,0.00024175,2]
[327534111,1716183047641,-240.27032745,0.00024182,2]
[327534112,1716183047651,-155.99121968,0.0002419,2]
[327534113,1716183047660,-1500.0,0.00024191,2]
[327534114,1716183047669,-1500.0,0.00024199,2]
[327534115,1716183047678,-1655.13,0.000242,2]
[327534116,1716183047688,-300.0,0.00024204,2]
[327534117,1716183047697,-254.03831927,0.00024228,2]
[327534119,1716183059165,2000.0,0.0002,15]
[327534123,1716183303760,151.1,0.0001959,15]
[327534124,1716183362567,-8188.37741239,9e-05,2]
[327534125,1716183362589,-150.0,9.568e-05,2]
[327534126,1716183362610,-3008.73708736,9.569e-05,2]
[327534127,1716183362630,-4000.0,9.57e-05,2]
[327534128,1716183362650,-181.84911277,9.667e-05,2]
[327534129,1716183362671,-4540.652287,9.669e-05,2]
[327534130,1716183362691,-250.0,0.00011333,2]
[327534131,1716183362727,-11495.6154,0.000129,2]
[327534132,1716183362748,-457.74988423,0.00013,2]
[327534133,1716183362771,-3394327.01881625,0.00013,2]
[327534134,1716183437182,161.43,0.00024329,30]
[327534135,1716183526404,6387.77956291,0.00025,30]
[327534212,1716184232275,-698.5797737,0.00010278,2]
[327534213,1716184232285,-239.63302115,0.00010279,2]
[327534214,1716184232387,-213.56697885,0.00010279,2]
[327534215,1716184232396,-269.64,0.00011333,2]
[327534217,1716184232405,-250.0,0.00011333,2]
[327534219,1716184232415,-1000.0,0.00012116,2]
[327534221,1716184232425,-12237.7133,0.00012249,2]
[327534222,1716184232435,-2483.3,0.00012275,2]
[327534223,1716184232445,-2958.81626482,0.00012349,2]
[327534224,1716184232455,-150.0,0.00012521,2]
[327534225,1716184232466,-453.2,0.00012543,2]
[327534226,1716184232475,-2810.53584204,0.00012709,2]
[327534227,1716184232487,-624.91528117,0.00012709,2]
[327534228,1716184232498,-2282.48887679,0.00012709,2]
[327534229,1716184232509,-269.64,0.0001275,2]
[327534230,1716184232518,-158.43787398,0.000129,2]
[327534231,1716184232527,-5000.0,0.000129,2]
[327534232,1716184232537,-2471.59,0.000129,2]
[327534233,1716184232546,-152.85901212,0.000129,2]
[327534234,1716184232556,-624.53080564,0.000129,2]
[327534235,1716184232565,-2352.3262735,0.000129,2]
[327534236,1716184232574,-2352.32627349,0.0001292,2]
[327534237,1716184232583,-152.85901212,0.0001297,2]
[327534238,1716184232592,-5664.5420019,0.0001299,2]
[327534239,1716184232601,-157.052014,0.00012997,2]
[327534240,1716184232611,-157.052014,0.00012997,2]
[327534241,1716184232620,-157.052014,0.00012997,2]
[327534242,1716184232629,-157.052014,0.00012997,2]
[327534243,1716184232638,-157.052014,0.00012997,2]
[327534244,1716184232648,-157.94470878,0.00012998,2]
[327534245,1716184232657,-159.65185869,0.00012998,2]
[327534246,1716184232666,-2248.87101333,0.00012998,2]
[327534247,1716184232675,-121.50295541,0.00012998,2]
[327534248,1716184232687,-776.61022031,0.00012998,2]
[327534249,1716184232698,-4919.40712192,0.00012998,2]
[327534250,1716184232708,-818.24848489,0.00012998,2]
[327534251,1716184232717,-2016.411,0.00012998,2]
[327534252,1716184232727,-1080.67189986,0.00012998,2]
[327534253,1716184232738,-157.052014,0.00012998,2]
[327534254,1716184232748,-157.052014,0.00012998,2]
[327534255,1716184232757,-157.052014,0.00012998,2]
[327534256,1716184232767,-157.052014,0.00012998,2]
[327534257,1716184232777,-157.052014,0.00012998,2]
[327534258,1716184232787,-157.052014,0.00012998,2]
[327534259,1716184232797,-157.052014,0.00012998,2]
[327534260,1716184232806,-157.052014,0.00012998,2]
[327534261,1716184232815,-367.4345297,0.00012998,2]
[327534262,1716184232825,-244251.07227274,0.00013,2]
[327534263,1716184232836,-7353.0,0.00013,2]
[327534264,1716184232848,-322.91174239,0.00013,2]
[327534265,1716184232889,-28701.4958251,0.00013,2]
[327534266,1716184232901,-4574.59801111,0.00013,2]
[327534267,1716184232930,-451.92492773,0.00013,2]
[327534268,1716184232941,-2403.6740392,0.00013,2]
[327534276,1716184238301,-311.66815294,0.00012311,2]
[327534277,1716184238406,-1235.9041344,0.00012311,2]
[327534278,1716184238420,-107.62771266,0.00012311,2]
[327534279,1716184238430,-2352.32627349,0.0001294,2]
[327534280,1716184238442,-10141.45024172,0.00012999,2]
[327534281,1716184238452,-4989000.09760338,0.00013,2]
[327534282,1716184238463,-384117.3900669,0.00013,2]
[327534283,1716184238835,-288.8961167,0.00013,2]
[327534284,1716184238846,-386.04775253,0.00013,2]
[327534318,1716184240405,-208.70509578,0.000129,2]
[327534320,1716184240415,-331.68490422,0.00013,2]
[327534332,1716184240519,-798.6057046,0.00013,2]
[327534335,1716184240531,-2560.0,0.00013,2]
[327534337,1716184240543,-34626.04042541,0.00013,2]
[327534348,1716184240635,-1018.03484289,0.00013,2]
[327534350,1716184240647,-516.88745,0.00013,2]
[327534380,1716184240909,-357.55195656,0.00013,2]
[327534414,1716184243424,-993.30195283,0.00013,2]
[327534424,1716184243552,-3873.46204895,0.00013,2]
[327534425,1716184243820,-539.22674462,0.00013,2]
[327534426,1716184243832,-619.10457442,0.00013,2]
[327534427,1716184243844,-303.19211591,0.00013,2]
[327534430,1716184246337,-208.70509578,0.0001292,2]
[327534431,1716184246346,-1205.74461398,0.00012999,2]
[327534432,1716184246356,-410.14975934,0.00012999,2]
[327534433,1716184246365,-686372.3298115,0.00013,2]
[327534434,1716184246376,-978.07654919,0.00013,2]
[327534435,1716184246544,-62.80950356,0.00013,2]
[327534436,1716184246555,-22846.55041019,0.00013,2]